[Event "Early-Titled-Tuesday-Blitz-February-06-2024"]
[Site "Chess.com"]
[Date "2024.02.06"]
[Round "1"]
[White "Irina_Mikhaylova"]
[Black "Hasangatin_Ramil"]
[Result "0-1"]
[WhiteElo "2342"]
[BlackElo "2665"]
[TimeControl "180+1"]
[EndTime "8:05:55 PST"]
[Termination "Hasangatin_Ramil won by resignation"]

1. d4 {[%clk 0:03:00.9]} 1... d6 {[%clk 0:03:00.4]} 2. Nf3 {[%clk 0:03:00.4]}
2... Bg4 {[%clk 0:03:00.4]} 3. c4 {[%clk 0:03:00.7]} 3... Bxf3 {[%clk
0:03:00.6]} 4. exf3 {[%clk 0:03:00.8]} 4... c6 {[%clk 0:03:01.5]} 5. d5 {[%clk
0:03:01.2]} 5... g6 {[%clk 0:03:01.8]} 6. Nc3 {[%clk 0:03:01.3]} 6... Bg7 {[%clk
0:03:02.3]} 7. Bd3 {[%clk 0:03:00.9]} 7... Nf6 {[%clk 0:03:02.9]} 8. O-O {[%clk
0:03:00.6]} 8... cxd5 {[%clk 0:03:02.3]} 9. cxd5 {[%clk 0:03:00.5]} 9... O-O
{[%clk 0:03:02.9]} 10. Re1 {[%clk 0:03:00.9]} 10... Nbd7 {[%clk 0:03:03.5]} 11.
Bg5 {[%clk 0:02:57.7]} 11... Re8 {[%clk 0:03:03.5]} 12. Re3 {[%clk 0:02:46.3]}
12... a6 {[%clk 0:03:03.3]} 13. Qe2 {[%clk 0:02:45.9]} 13... b5 {[%clk
0:03:02.9]} 14. a3 {[%clk 0:02:42.6]} 14... Nb6 {[%clk 0:03:02.9]} 15. Be4
{[%clk 0:02:29.2]} 15... Nc4 {[%clk 0:03:00.7]} 16. Rd3 {[%clk 0:02:29.3]} 16...
Rc8 {[%clk 0:02:58.6]} 17. Re1 {[%clk 0:02:26.2]} 17... Qc7 {[%clk 0:02:51.9]}
18. Bc1 {[%clk 0:02:13]} 18... Ne5 {[%clk 0:02:32.7]} 19. Rdd1 {[%clk
0:02:08.5]} 19... Qc4 {[%clk 0:02:32]} 20. Bd3 {[%clk 0:01:58.1]} 20... Qc5
{[%clk 0:02:24]} 21. f4 {[%clk 0:01:50.8]} 21... Nxd3 {[%clk 0:02:17.6]} 22.
Qxd3 {[%clk 0:01:43.7]} 22... Qc4 {[%clk 0:02:15]} 23. g3 {[%clk 0:01:37.8]}
23... Qxd3 {[%clk 0:02:14]} 24. Rxd3 {[%clk 0:01:38.7]} 24... Kf8 {[%clk
0:02:14]} 25. Be3 {[%clk 0:01:23.8]} 25... Rc4 {[%clk 0:02:13.2]} 26. Bd4 {[%clk
0:01:20.9]} 26... Rec8 {[%clk 0:02:13.1]} 27. Red1 {[%clk 0:01:20.6]} 27... Nd7
{[%clk 0:02:01.8]} 28. Bxg7+ {[%clk 0:01:20]} 28... Kxg7 {[%clk 0:02:02.7]} 29.
Re3 {[%clk 0:01:16.7]} 29... Kf8 {[%clk 0:02:02.2]} 30. Rde1 {[%clk 0:01:14.7]}
30... Re8 {[%clk 0:01:59.8]} 31. Re4 {[%clk 0:01:04.9]} 31... Nb6 {[%clk
0:01:56.5]} 32. Rxc4 {[%clk 0:01:00.9]} 32... Nxc4 {[%clk 0:01:56.6]} 33. Re2
{[%clk 0:01:01.3]} 33... Rc8 {[%clk 0:01:56.8]} 34. Ne4 {[%clk 0:01:01.4]} 34...
Nb6 {[%clk 0:01:52.9]} 35. Rd2 {[%clk 0:00:58.7]} 35... Rc4 {[%clk 0:01:45.4]}
36. f3 {[%clk 0:00:52.4]} 36... h6 {[%clk 0:01:38.1]} 37. Kf2 {[%clk 0:00:51.6]}
37... Ke8 {[%clk 0:01:38.6]} 38. g4 {[%clk 0:00:41.3]} 38... Kd7 {[%clk
0:01:38.1]} 39. Ke2 {[%clk 0:00:33.6]} 39... Rc8 {[%clk 0:01:34.1]} 40. Kd1
{[%clk 0:00:27.5]} 40... Nc4 {[%clk 0:01:33.4]} 41. Rc2 {[%clk 0:00:27.1]} 41...
Ne3+ {[%clk 0:01:33.4]} 0-1

[Event "Early-Titled-Tuesday-Blitz-February-06-2024"]
[Site "Chess.com"]
[Date "2024.02.06"]
[Round "1"]
[White "falzehope0"]
[Black "traviscottofficial"]
[Result "0-1"]
[WhiteElo "2384"]
[BlackElo "2703"]
[TimeControl "180+1"]
[EndTime "8:05:56 PST"]
[Termination "traviscottofficial won by checkmate"]

1. d4 {[%clk 0:03:00.1]} 1... Nf6 {[%clk 0:02:58.5]} 2. e3 {[%clk 0:03:01]} 2...
g6 {[%clk 0:02:57.1]} 3. Bd3 {[%clk 0:03:00.9]} 3... Bg7 {[%clk 0:02:57.7]} 4.
f4 {[%clk 0:03:01.1]} 4... O-O {[%clk 0:02:58.1]} 5. f5 {[%clk 0:03:00.1]} 5...
d5 {[%clk 0:02:55.6]} 6. fxg6 {[%clk 0:03:00.3]} 6... hxg6 {[%clk 0:02:54.1]} 7.
Nf3 {[%clk 0:03:00.9]} 7... c5 {[%clk 0:02:54.4]} 8. c3 {[%clk 0:03:00.7]} 8...
Nc6 {[%clk 0:02:54.5]} 9. O-O {[%clk 0:03:00.7]} 9... Qc7 {[%clk 0:02:50.6]} 10.
h3 {[%clk 0:02:58.1]} 10... e5 {[%clk 0:02:50.6]} 11. Ng5 {[%clk 0:02:57.3]}
11... e4 {[%clk 0:02:46.9]} 12. Bb5 {[%clk 0:02:47.4]} 12... Qg3 {[%clk
0:02:43.4]} 13. Nxf7 {[%clk 0:02:20.1]} 13... Rxf7 {[%clk 0:02:29.2]} 14. Qe1
{[%clk 0:02:13]} 14... Qg5 {[%clk 0:02:15.1]} 15. Kh1 {[%clk 0:02:07.2]} 15...
Bd7 {[%clk 0:02:08.4]} 16. dxc5 {[%clk 0:02:01.4]} 16... Raf8 {[%clk 0:02:08.2]}
17. Rg1 {[%clk 0:01:54]} 17... Ng4 {[%clk 0:02:04.3]} 18. Be2 {[%clk 0:01:41.2]}
18... Nf2+ {[%clk 0:02:02.4]} 19. Kh2 {[%clk 0:01:39.3]} 19... Be5+ {[%clk
0:01:19.9]} 20. g3 {[%clk 0:01:35.6]} 20... Nxh3 {[%clk 0:01:19.4]} 21. Rg2
{[%clk 0:01:07.3]} 21... Rf2 {[%clk 0:01:17.5]} 22. Kh1 {[%clk 0:01:03.4]} 22...
Rxg2 {[%clk 0:01:15.2]} 23. Kxg2 {[%clk 0:01:02.5]} 23... Rf2+ {[%clk
0:01:15.6]} 24. Qxf2 {[%clk 0:01:02.2]} 24... Nxf2 {[%clk 0:01:15.7]} 25. Kxf2
{[%clk 0:01:03.1]} 25... Qxg3+ {[%clk 0:01:15.8]} 26. Kf1 {[%clk 0:00:05.2]}
26... Bh3# {[%clk 0:01:15.8]} 0-1

[Event "Early-Titled-Tuesday-Blitz-February-06-2024"]
[Site "Chess.com"]
[Date "2024.02.06"]
[Round "1"]
[White "viktorskliarov"]
[Black "cukricek"]
[Result "1-0"]
[WhiteElo "2633"]
[BlackElo "2307"]
[TimeControl "180+1"]
[EndTime "8:05:56 PST"]
[Termination "viktorskliarov won by resignation"]

1. e4 {[%clk 0:02:59.2]} 1... c5 {[%clk 0:03:00.1]} 2. Nf3 {[%clk 0:02:59.3]}
2... g6 {[%clk 0:02:59.8]} 3. c3 {[%clk 0:02:58.2]} 3... d5 {[%clk 0:02:58.9]}
4. exd5 {[%clk 0:02:57.2]} 4... Qxd5 {[%clk 0:02:59.8]} 5. Na3 {[%clk
0:02:57.8]} 5... Bg7 {[%clk 0:02:59.5]} 6. Nc4 {[%clk 0:02:53.6]} 6... Nc6
{[%clk 0:02:58]} 7. a4 {[%clk 0:02:49.4]} 7... Nf6 {[%clk 0:02:57.8]} 8. Be2
{[%clk 0:02:48.7]} 8... O-O {[%clk 0:02:57.4]} 9. O-O {[%clk 0:02:48.7]} 9...
Rd8 {[%clk 0:02:52.2]} 10. a5 {[%clk 0:02:34.1]} 10... Be6 {[%clk 0:02:39.4]}
11. d3 {[%clk 0:02:19.1]} 11... Bf5 {[%clk 0:01:52.8]} 12. Ne3 {[%clk
0:02:16.3]} 12... Qd7 {[%clk 0:01:51.5]} 13. Nxf5 {[%clk 0:02:13]} 13... Qxf5
{[%clk 0:01:52.4]} 14. Qa4 {[%clk 0:02:12.4]} 14... Rac8 {[%clk 0:01:38.3]} 15.
Rd1 {[%clk 0:02:08.7]} 15... Nd5 {[%clk 0:01:32.2]} 16. Bf1 {[%clk 0:01:56.7]}
16... e5 {[%clk 0:01:28.2]} 17. Qe4 {[%clk 0:01:25.7]} 17... Qe6 {[%clk
0:01:20]} 18. g3 {[%clk 0:01:09.6]} 18... f5 {[%clk 0:01:19.5]} 19. Qh4 {[%clk
0:01:09.1]} 19... Bf6 {[%clk 0:01:13.4]} 20. Bg5 {[%clk 0:01:03.1]} 20... Bxg5
{[%clk 0:01:03]} 21. Qxh7+ {[%clk 0:00:46.8]} 21... Kxh7 {[%clk 0:00:46.9]} 22.
Nxg5+ {[%clk 0:00:46.7]} 22... Kg8 {[%clk 0:00:47.8]} 23. Nxe6 {[%clk
0:00:47.4]} 23... Re8 {[%clk 0:00:43]} 24. Nxc5 {[%clk 0:00:46.5]} 24... Rc7
{[%clk 0:00:43.9]} 25. Bg2 {[%clk 0:00:40.3]} 25... Nf6 {[%clk 0:00:43.4]} 26.
Nxb7 {[%clk 0:00:37]} 1-0

[Event "Early-Titled-Tuesday-Blitz-February-06-2024"]
[Site "Chess.com"]
[Date "2024.02.06"]
[Round "1"]
[White "patzersame"]
[Black "aghasiyevkamal"]
[Result "0-1"]
[WhiteElo "2367"]
[BlackElo "2680"]
[TimeControl "180+1"]
[EndTime "8:05:58 PST"]
[Termination "aghasiyevkamal won on time"]

1. e4 {[%clk 0:03:00.9]} 1... e5 {[%clk 0:02:57.4]} 2. Nf3 {[%clk 0:03:00.7]}
2... Nc6 {[%clk 0:02:57.1]} 3. d4 {[%clk 0:03:01.2]} 3... exd4 {[%clk
0:02:56.6]} 4. c3 {[%clk 0:03:01.8]} 4... d5 {[%clk 0:02:54]} 5. exd5 {[%clk
0:03:02.7]} 5... Qxd5 {[%clk 0:02:53.4]} 6. cxd4 {[%clk 0:03:03.6]} 6... Bb4+
{[%clk 0:02:52.4]} 7. Nc3 {[%clk 0:03:03.5]} 7... Bg4 {[%clk 0:02:51.7]} 8. Be2
{[%clk 0:03:03.8]} 8... Bxf3 {[%clk 0:02:50.2]} 9. Bxf3 {[%clk 0:03:04.7]} 9...
Qc4 {[%clk 0:02:49.5]} 10. Qb3 {[%clk 0:03:05.3]} 10... Qxb3 {[%clk 0:02:02.4]}
11. axb3 {[%clk 0:03:06.2]} 11... Nge7 {[%clk 0:01:57.3]} 12. O-O {[%clk
0:03:05.5]} 12... a6 {[%clk 0:01:53.4]} 13. Bf4 {[%clk 0:03:01.5]} 13... O-O-O
{[%clk 0:01:50.3]} 14. Ne2 {[%clk 0:02:16]} 14... Rhe8 {[%clk 0:01:24.4]} 15.
Rac1 {[%clk 0:02:10.5]} 15... f6 {[%clk 0:01:21.7]} 16. Rfd1 {[%clk 0:01:51.5]}
16... Nd5 {[%clk 0:00:56.2]} 0-1

[Event "Early-Titled-Tuesday-Blitz-February-06-2024"]
[Site "Chess.com"]
[Date "2024.02.06"]
[Round "1"]
[White "Chessdreamer2020"]
[Black "SpongeBob_03"]
[Result "0-1"]
[WhiteElo "2555"]
[BlackElo "2201"]
[TimeControl "180+1"]
[EndTime "8:06:01 PST"]
[Termination "SpongeBob_03 won by resignation"]

1. e4 {[%clk 0:03:00]} 1... c5 {[%clk 0:02:59]} 2. Nf3 {[%clk 0:03:00.2]} 2...
a6 {[%clk 0:02:53.2]} 3. g3 {[%clk 0:02:58.5]} 3... b5 {[%clk 0:02:49.8]} 4. Bg2
{[%clk 0:02:58.5]} 4... Bb7 {[%clk 0:02:49.2]} 5. d3 {[%clk 0:02:56.1]} 5... e6
{[%clk 0:02:46.4]} 6. O-O {[%clk 0:02:56]} 6... Ne7 {[%clk 0:02:41.8]} 7. Re1
{[%clk 0:02:54.9]} 7... d6 {[%clk 0:02:41.5]} 8. b3 {[%clk 0:02:52.1]} 8... Nd7
{[%clk 0:02:37.2]} 9. Bb2 {[%clk 0:02:49.9]} 9... e5 {[%clk 0:02:24.5]} 10. a4
{[%clk 0:02:48.5]} 10... b4 {[%clk 0:02:16.3]} 11. Nbd2 {[%clk 0:02:47.9]} 11...
Nb6 {[%clk 0:02:07.5]} 12. a5 {[%clk 0:02:47.5]} 12... Nbc8 {[%clk 0:02:04.4]}
13. Nc4 {[%clk 0:02:48.4]} 13... Na7 {[%clk 0:02:04.2]} 14. Nh4 {[%clk
0:02:24.7]} 14... g6 {[%clk 0:02:03.6]} 15. f4 {[%clk 0:02:21.6]} 15... Bg7
{[%clk 0:02:02.8]} 16. fxe5 {[%clk 0:02:16.5]} 16... dxe5 {[%clk 0:01:55.8]} 17.
Nxe5 {[%clk 0:02:15]} 17... Nb5 {[%clk 0:01:48.8]} 18. Nhf3 {[%clk 0:02:10.7]}
18... O-O {[%clk 0:01:43.3]} 19. Rf1 {[%clk 0:02:09.5]} 19... Qc7 {[%clk
0:01:35.8]} 20. Nc4 {[%clk 0:02:03.5]} 20... Bxb2 {[%clk 0:01:28.1]} 21. Nxb2
{[%clk 0:02:04.4]} 21... Nc3 {[%clk 0:01:28.9]} 22. Qd2 {[%clk 0:02:03.5]} 22...
Rad8 {[%clk 0:01:29.8]} 23. Qh6 {[%clk 0:01:59.2]} 23... f6 {[%clk 0:01:18.8]}
24. Nc4 {[%clk 0:01:57.1]} 24... Nc6 {[%clk 0:01:17.2]} 25. Bh3 {[%clk
0:01:56.5]} 25... Ne2+ {[%clk 0:01:08.3]} 26. Kh1 {[%clk 0:01:54.8]} 26... Ncd4
{[%clk 0:01:08.4]} 27. Nxd4 {[%clk 0:01:51.9]} 27... Nxd4 {[%clk 0:01:07.8]} 28.
Bg2 {[%clk 0:01:51]} 28... Nxc2 {[%clk 0:01:06.8]} 29. Rad1 {[%clk 0:01:47.8]}
29... Qg7 {[%clk 0:01:01.8]} 30. Qf4 {[%clk 0:01:32.1]} 30... Nd4 {[%clk
0:01:02.1]} 31. Rb1 {[%clk 0:01:30.1]} 31... f5 {[%clk 0:00:59]} 32. e5 {[%clk
0:01:26.2]} 32... Bxg2+ {[%clk 0:00:57.9]} 33. Kxg2 {[%clk 0:01:27.1]} 33...
Qb7+ {[%clk 0:00:58.6]} 34. Kg1 {[%clk 0:01:20.8]} 34... Ne2+ {[%clk 0:00:58.3]}
35. Kf2 {[%clk 0:01:20]} 35... Nxf4 {[%clk 0:00:59.2]} 36. gxf4 {[%clk
0:01:20.9]} 36... Rxd3 {[%clk 0:01:00.1]} 37. Nd6 {[%clk 0:01:20.4]} 37... Qf3+
{[%clk 0:00:58.3]} 38. Kg1 {[%clk 0:01:19.3]} 38... Qg4+ {[%clk 0:00:55.9]} 39.
Kh1 {[%clk 0:01:19.3]} 39... Rd2 {[%clk 0:00:56]} 0-1

[Event "Early-Titled-Tuesday-Blitz-February-06-2024"]
[Site "Chess.com"]
[Date "2024.02.06"]
[Round "1"]
[White "19912131712118"]
[Black "alexrustemov"]
[Result "0-1"]
[WhiteElo "2426"]
[BlackElo "2772"]
[TimeControl "180+1"]
[EndTime "8:06:05 PST"]
[Termination "alexrustemov won on time"]

1. e4 {[%clk 0:02:59.7]} 1... e6 {[%clk 0:03:00.1]} 2. d4 {[%clk 0:02:59.2]}
2... d5 {[%clk 0:03:01]} 3. Bd3 {[%clk 0:02:52.5]} 3... dxe4 {[%clk 0:03:00.9]}
4. Bxe4 {[%clk 0:02:52.2]} 4... Nf6 {[%clk 0:03:01.3]} 5. Bf3 {[%clk 0:02:51.1]}
5... Be7 {[%clk 0:03:01]} 6. Ne2 {[%clk 0:02:50.5]} 6... O-O {[%clk 0:03:01.3]}
7. O-O {[%clk 0:02:49.4]} 7... Nbd7 {[%clk 0:03:01.3]} 8. Re1 {[%clk 0:02:30.8]}
8... e5 {[%clk 0:02:52.7]} 9. g3 {[%clk 0:02:18.2]} 9... c6 {[%clk 0:02:41.9]}
10. Bg2 {[%clk 0:02:13]} 10... Re8 {[%clk 0:02:40]} 11. Nd2 {[%clk 0:01:49]}
11... exd4 {[%clk 0:02:33.6]} 12. Nxd4 {[%clk 0:01:48.6]} 12... Nb6 {[%clk
0:02:26.9]} 13. N2f3 {[%clk 0:01:40.7]} 13... Bg4 {[%clk 0:02:20.6]} 14. h3
{[%clk 0:01:38.8]} 14... Bh5 {[%clk 0:02:12.4]} 15. c3 {[%clk 0:01:15.8]} 15...
Bf8 {[%clk 0:02:08]} 16. Bg5 {[%clk 0:01:05.6]} 16... Rxe1+ {[%clk 0:02:06.4]}
17. Qxe1 {[%clk 0:01:06.5]} 17... h6 {[%clk 0:02:06.4]} 18. Bxf6 {[%clk
0:00:51.1]} 18... Qxf6 {[%clk 0:02:07.3]} 19. Rd1 {[%clk 0:00:50.6]} 19... Rd8
{[%clk 0:02:00.6]} 20. g4 {[%clk 0:00:32.6]} 20... Bg6 {[%clk 0:01:59.7]} 21.
Ne2 {[%clk 0:00:23.3]} 21... Rxd1 {[%clk 0:01:52.4]} 22. Qxd1 {[%clk 0:00:24.2]}
22... Bd6 {[%clk 0:01:47.2]} 23. Qd4 {[%clk 0:00:18.4]} 23... Qxd4 {[%clk
0:01:46.2]} 24. Nexd4 {[%clk 0:00:18.7]} 24... Na4 {[%clk 0:01:44]} 25. b3
{[%clk 0:00:09.9]} 25... Nxc3 {[%clk 0:01:43.5]} 26. a4 {[%clk 0:00:10.4]} 26...
a5 {[%clk 0:01:34.9]} 27. Nh4 {[%clk 0:00:09.4]} 27... Bb1 {[%clk 0:01:30.5]}
28. Nhf5 {[%clk 0:00:09.1]} 28... Bc5 {[%clk 0:01:30.3]} 29. Nf3 {[%clk
0:00:04.3]} 29... Ne2+ {[%clk 0:01:17.8]} 30. Kf1 {[%clk 0:00:02.6]} 30... Nc1
{[%clk 0:01:18.5]} 0-1

[Event "Early-Titled-Tuesday-Blitz-February-06-2024"]
[Site "Chess.com"]
[Date "2024.02.06"]
[Round "1"]
[White "NFChess13"]
[Black "KanalSzachowy"]
[Result "1-0"]
[WhiteElo "2667"]
[BlackElo "2348"]
[TimeControl "180+1"]
[EndTime "8:06:06 PST"]
[Termination "NFChess13 won by resignation"]

1. Nf3 {[%clk 0:03:00.9]} 1... c5 {[%clk 0:02:59.2]} 2. g3 {[%clk 0:02:58.7]}
2... Nc6 {[%clk 0:02:58.8]} 3. Bg2 {[%clk 0:02:58.6]} 3... e5 {[%clk 0:02:58.6]}
4. O-O {[%clk 0:02:58.2]} 4... g6 {[%clk 0:02:56.1]} 5. c4 {[%clk 0:02:55.2]}
5... Bg7 {[%clk 0:02:55]} 6. Nc3 {[%clk 0:02:55.3]} 6... d6 {[%clk 0:02:53.5]}
7. d3 {[%clk 0:02:55.2]} 7... Nge7 {[%clk 0:02:47.6]} 8. Bg5 {[%clk 0:02:53.6]}
8... h6 {[%clk 0:02:42.7]} 9. Bxe7 {[%clk 0:02:53.4]} 9... Nxe7 {[%clk 0:02:41]}
10. Rb1 {[%clk 0:02:51.6]} 10... a5 {[%clk 0:02:35.1]} 11. a3 {[%clk 0:02:51.1]}
11... O-O {[%clk 0:02:30.4]} 12. Ne1 {[%clk 0:02:49.6]} 12... Be6 {[%clk
0:02:26.6]} 13. Bxb7 {[%clk 0:02:47.5]} 13... Rb8 {[%clk 0:02:25.7]} 14. Bg2
{[%clk 0:02:46.8]} 14... d5 {[%clk 0:02:25.9]} 15. cxd5 {[%clk 0:02:44.4]} 15...
Nxd5 {[%clk 0:02:24]} 16. Nxd5 {[%clk 0:02:41.8]} 16... Bxd5 {[%clk 0:02:24]}
17. Bxd5 {[%clk 0:02:42.6]} 17... Qxd5 {[%clk 0:02:24.5]} 18. Nc2 {[%clk
0:02:43.5]} 18... Rfd8 {[%clk 0:02:20]} 19. Ne3 {[%clk 0:02:42.7]} 19... Qe6
{[%clk 0:02:16.8]} 20. Qc2 {[%clk 0:02:42.4]} 20... Rb5 {[%clk 0:02:04.4]} 21.
Rfc1 {[%clk 0:02:32.6]} 21... Rdb8 {[%clk 0:02:02.3]} 22. Nc4 {[%clk 0:02:27.6]}
22... h5 {[%clk 0:01:51.1]} 23. a4 {[%clk 0:02:18.1]} 23... R5b6 {[%clk
0:01:34.4]} 24. Nxb6 {[%clk 0:02:17.9]} 24... Rxb6 {[%clk 0:01:30.9]} 25. Qxc5
{[%clk 0:02:16.4]} 25... Kh7 {[%clk 0:00:55.9]} 26. b4 {[%clk 0:02:09.8]} 26...
e4 {[%clk 0:00:54.5]} 27. bxa5 {[%clk 0:02:04.3]} 27... Ra6 {[%clk 0:00:50.9]}
28. Rb6 {[%clk 0:02:01.3]} 28... Rxb6 {[%clk 0:00:37.2]} 29. axb6 {[%clk
0:02:02.2]} 29... Qg4 {[%clk 0:00:35.5]} 30. b7 {[%clk 0:01:58.5]} 30... Qxe2
{[%clk 0:00:34.3]} 31. b8=Q {[%clk 0:01:52.6]} 31... exd3 {[%clk 0:00:35.2]} 32.
Qe3 {[%clk 0:01:48.7]} 32... d2 {[%clk 0:00:30.3]} 33. Qxe2 {[%clk 0:01:47]}
33... dxc1=Q+ {[%clk 0:00:30.8]} 34. Qf1 {[%clk 0:01:47.6]} 34... Qa3 {[%clk
0:00:23.6]} 35. Qa7 {[%clk 0:01:29.4]} 35... Qf3 {[%clk 0:00:16.6]} 36. a5
{[%clk 0:01:25.8]} 36... h4 {[%clk 0:00:16.3]} 37. a6 {[%clk 0:01:26]} 37... h3
{[%clk 0:00:15.2]} 38. Qb7 {[%clk 0:01:24.7]} 1-0

[Event "Early-Titled-Tuesday-Blitz-February-06-2024"]
[Site "Chess.com"]
[Date "2024.02.06"]
[Round "1"]
[White "mbchess97"]
[Black "DavidGavrilescu18"]
[Result "0-1"]
[WhiteElo "2429"]
[BlackElo "2772"]
[TimeControl "180+1"]
[EndTime "8:06:08 PST"]
[Termination "DavidGavrilescu18 won by resignation"]

1. c4 {[%clk 0:03:00.9]} 1... e6 {[%clk 0:02:59.7]} 2. g3 {[%clk 0:03:00.9]}
2... d5 {[%clk 0:03:00.6]} 3. Bg2 {[%clk 0:03:01.1]} 3... d4 {[%clk 0:03:01.3]}
4. Nf3 {[%clk 0:02:56.5]} 4... c5 {[%clk 0:03:00.9]} 5. O-O {[%clk 0:02:55]}
5... Nc6 {[%clk 0:03:01.2]} 6. e3 {[%clk 0:02:53.4]} 6... Nf6 {[%clk 0:03:01.5]}
7. exd4 {[%clk 0:02:53.2]} 7... cxd4 {[%clk 0:03:02.4]} 8. d3 {[%clk 0:02:53.4]}
8... h6 {[%clk 0:03:01.8]} 9. Qa4 {[%clk 0:02:35.9]} 9... Bd7 {[%clk 0:02:44.8]}
10. Re1 {[%clk 0:02:35.2]} 10... Bd6 {[%clk 0:02:41.8]} 11. a3 {[%clk
0:02:27.1]} 11... a5 {[%clk 0:02:38.2]} 12. Nbd2 {[%clk 0:02:23.5]} 12... O-O
{[%clk 0:02:37.2]} 13. Qd1 {[%clk 0:02:04.3]} 13... Re8 {[%clk 0:02:33.6]} 14.
Rb1 {[%clk 0:01:57.3]} 14... e5 {[%clk 0:02:31.6]} 15. Nh4 {[%clk 0:01:45.1]}
15... Rb8 {[%clk 0:02:22.3]} 16. Ne4 {[%clk 0:01:41.8]} 16... Nxe4 {[%clk
0:02:20.2]} 17. Bxe4 {[%clk 0:01:41.8]} 17... Qf6 {[%clk 0:02:17.2]} 18. Qh5
{[%clk 0:01:34.9]} 18... Ne7 {[%clk 0:02:15.7]} 19. b4 {[%clk 0:01:29.9]} 19...
axb4 {[%clk 0:02:14.7]} 20. axb4 {[%clk 0:01:30]} 20... Bc6 {[%clk 0:02:15.3]}
21. c5 {[%clk 0:01:18.9]} 21... Bc7 {[%clk 0:02:13.8]} 22. b5 {[%clk 0:01:15.4]}
22... Bxe4 {[%clk 0:02:12.6]} 23. Rxe4 {[%clk 0:01:16.3]} 23... Nd5 {[%clk
0:02:10.6]} 24. Bd2 {[%clk 0:01:14]} 24... Qe6 {[%clk 0:01:56.4]} 25. Nf5 {[%clk
0:00:58.8]} 25... Nf6 {[%clk 0:01:53.2]} 26. Nxg7 {[%clk 0:00:38.2]} 26... Nxh5
{[%clk 0:01:46.5]} 27. Nxe6 {[%clk 0:00:38.3]} 27... Rxe6 {[%clk 0:01:47.4]} 28.
b6 {[%clk 0:00:37.9]} 28... Bd8 {[%clk 0:01:45.8]} 29. Rbe1 {[%clk 0:00:31.6]}
29... f6 {[%clk 0:01:43.2]} 30. f4 {[%clk 0:00:31]} 30... Be7 {[%clk 0:01:43.4]}
31. g4 {[%clk 0:00:25.5]} 31... Ng7 {[%clk 0:01:42.3]} 32. fxe5 {[%clk
0:00:19.6]} 32... Bxc5 {[%clk 0:01:41.6]} 33. Bxh6 {[%clk 0:00:17.9]} 33... fxe5
{[%clk 0:01:36.6]} 34. Rxe5 {[%clk 0:00:17.1]} 34... Rxh6 {[%clk 0:01:31.2]} 35.
Rxc5 {[%clk 0:00:17]} 35... Rxb6 {[%clk 0:01:31.5]} 36. Rc7 {[%clk 0:00:16.3]}
36... Rg6 {[%clk 0:01:31.7]} 37. h3 {[%clk 0:00:15.7]} 37... b5 {[%clk
0:01:32.3]} 38. Ree7 {[%clk 0:00:14.6]} 38... b4 {[%clk 0:01:32.6]} 39. Kf2
{[%clk 0:00:15]} 39... b3 {[%clk 0:01:30.2]} 40. h4 {[%clk 0:00:15.3]} 40...
Rxg4 {[%clk 0:01:29.3]} 41. h5 {[%clk 0:00:15.7]} 41... b2 {[%clk 0:01:28.7]}
0-1

[Event "Early-Titled-Tuesday-Blitz-February-06-2024"]
[Site "Chess.com"]
[Date "2024.02.06"]
[Round "1"]
[White "BelaKis"]
[Black "Dinosaurio_1975"]
[Result "0-1"]
[WhiteElo "2237"]
[BlackElo "2591"]
[TimeControl "180+1"]
[EndTime "8:06:08 PST"]
[Termination "Dinosaurio_1975 won by resignation"]

1. d4 {[%clk 0:03:00.9]} 1... d5 {[%clk 0:02:57.3]} 2. c4 {[%clk 0:03:00.7]}
2... e6 {[%clk 0:02:57.3]} 3. Nc3 {[%clk 0:03:00.4]} 3... Nf6 {[%clk 0:02:57.4]}
4. Nf3 {[%clk 0:03:00.6]} 4... a6 {[%clk 0:02:57.3]} 5. a4 {[%clk 0:02:56]} 5...
Bb4 {[%clk 0:02:55.7]} 6. e3 {[%clk 0:02:56]} 6... O-O {[%clk 0:02:54.3]} 7. Bd3
{[%clk 0:02:55.8]} 7... c5 {[%clk 0:02:44.3]} 8. O-O {[%clk 0:02:53]} 8... cxd4
{[%clk 0:02:44]} 9. exd4 {[%clk 0:02:52.9]} 9... dxc4 {[%clk 0:02:40.6]} 10.
Bxc4 {[%clk 0:02:52.9]} 10... Nc6 {[%clk 0:02:41.2]} 11. Qd3 {[%clk 0:02:44.3]}
11... b6 {[%clk 0:02:26.2]} 12. Bg5 {[%clk 0:02:27.7]} 12... Bb7 {[%clk
0:01:55.7]} 13. Rad1 {[%clk 0:02:25.7]} 13... Na5 {[%clk 0:01:42.5]} 14. Ba2
{[%clk 0:02:20.1]} 14... Be7 {[%clk 0:01:42.8]} 15. Bb1 {[%clk 0:02:09]} 15...
g6 {[%clk 0:01:32.3]} 16. Bh6 {[%clk 0:02:00.6]} 16... Re8 {[%clk 0:01:31.7]}
17. Ne5 {[%clk 0:02:00.1]} 17... Nc6 {[%clk 0:01:24.7]} 18. Qh3 {[%clk
0:01:45.2]} 18... Nd5 {[%clk 0:01:11]} 19. Ne4 {[%clk 0:01:24.1]} 19... Qc7
{[%clk 0:00:52.3]} 20. Rfe1 {[%clk 0:00:51.4]} 20... Nxe5 {[%clk 0:00:37.1]} 21.
dxe5 {[%clk 0:00:51.2]} 21... Qxe5 {[%clk 0:00:35.5]} 22. Bg5 {[%clk 0:00:30.9]}
22... Bxg5 {[%clk 0:00:31]} 0-1